bitfinex-derivatives/quotes_ETHF0:USTF0_20250501
["timestamp","ask_amount","ask_price","bid_price","bid_amount"]
[1746095360081,1.08537,1842.4,1842.3,4.29319]
[1746095360274,6.5752,1842.7,1842.3,3.2078]
[1746095360478,1.0853,1842.6,1842.5,4.2931]
[1746095360678,2.79342,1842.7,1842.6,1.08526]
[1746095360978,1.08526,1842.6,1842.5,4.29308]
[1746095361180,6.5752,1842.7,1842.5,3.2078]
[1746095361383,1.08526,1842.6,1842.5,4.29306]
[1746095361681,1.08526,1842.6,1842.5,3.2078]
[1746095361879,2.79826,1842.6,1842.5,3.2078]
[1746095362077,1.713,1842.6,1842.5,4.29312]
[1746095362678,2.79826,1842.6,1842.5,4.29312]
[1746095362878,1.3889,1842.9,1842.7,1.08515]
[1746095363073,6.58,1842.8,1842.7,1.08515]
[1746095363278,1.713,1842.8,1842.7,1.08515]
[1746095363478,6.58,1842.8,1842.7,1.08515]
[1746095363676,6.58,1842.8,1842.6,3.2078]
[1746095363895,1.0852,1842.7,1842.6,4.293]
[1746095364183,1.7389,1842.7,1842.6,1.0852]
[1746095364382,1.7389,1842.7,1842.6,4.293]
[1746095365782,4.867,1843.1,1842.6,3.2078]
[1746095366086,2.82398,1842.9,1842.8,4.29294]
[1746095366381,7.7124,1843.3,1843.2,1.0849]
[1746095366580,2.71139,1843.8,1843.2,1.0849]
[1746095366887,1.08473,1843.5,1843.4,4.29255]
[1746095367086,2.7906,1844.0,1843.4,5.91965]
[1746095367280,1.08456,1843.8,1843.6,3.2078]
[1746095367587,1.7137,1843.7,1843.6,4.29247]
[1746095367894,1.08455,1843.8,1843.7,1.08456]
[1746095368184,1.08461,1843.7,1843.6,3.2078]
[1746095368385,2.79831,1843.7,1843.6,3.2078]
[1746095368582,1.08473,1843.5,1843.4,40.8]
[1746095368777,5.95173,1843.5,1843.4,40.8]
[1746095368982,1.08471,1843.6,1843.4,41.88474]
[1746095369388,2.79841,1843.6,1843.4,41.88474]
[1746095369591,2.79841,1843.6,1843.4,43.61064]
[1746095369789,2.79837,1843.6,1843.5,1.08473]
[1746095370089,2.79837,1843.6,1843.5,2.68583]
[1746095370286,2.79837,1843.6,1843.5,1.6011]
[1746095370785,1.7137,1843.6,1843.5,5.89363]
[1746095370985,5.5018,1844.0,1843.5,4.8089]
[1746095370986,2.7906,1844.0,1843.5,4.8089]
[1746095371181,1.08456,1843.8,1843.7,3.2078]
[1746095371386,1.08456,1843.8,1843.6,1.08463]
[1746095371586,1.08461,1843.7,1843.6,3.2078]
[1746095371782,4.35494,1843.7,1843.3,4.8089]
[1746095371984,1.08478,1843.4,1843.3,1.08483]
[1746095372187,1.08477,1843.5,1843.3,4.29263]
[1746095372383,1.08471,1843.6,1843.3,3.2078]
[1746095372590,1.08473,1843.5,1843.4,2.68583]
[1746095372789,2.71054,1844.4,1843.6,2.7116]
[1746095372990,7.57654,1844.4,1844.0,1.08441]
[1746095373289,1.08437,1844.1,1844.0,4.29221]
[1746095373592,1.08431,1844.2,1844.1,1.08436]
[1746095373893,1.08431,1844.2,1844.1,2.81406]
[1746095374089,1.08443,1844.0,1843.9,40.8]
[1746095374285,1.08443,1844.0,1843.9,41.88447]
[1746095374486,2.71108,1844.0,1843.6,3.2078]
[1746095374787,1.08469,1843.6,1843.4,6.02223]
[1746095374984,1.08473,1843.5,1843.4,6.02223]
[1746095375385,1.08471,1843.6,1843.5,1.08473]
[1746095375587,1.08466,1843.7,1843.5,1.08473]
[1746095375882,1.08465,1843.7,1843.5,2.81443]
[1746095376085,1.08467,1843.6,1843.5,2.81443]
[1746095376391,1.08467,1843.6,1843.5,1.7297]
[1746095377098,1.08467,1843.6,1843.5,2.81441]
[1746095377796,7.57708,1844.0,1843.6,1.08462]
[1746095378095,1.08461,1843.7,1843.6,1.08462]
[1746095378288,1.0846,1843.8,1843.7,1.08461]
[1746095378484,1.0846,1843.8,1843.7,1.5931]
[1746095378684,2.8959,1844.2,1843.7,1.5931]
[1746095378891,1.08453,1843.9,1843.8,4.29234]
[1746095379089,7.57594,1844.1,1843.7,43.47768]
[1746095379296,1.08455,1843.8,1843.7,40.8]
[1746095379987,1.08467,1843.6,1843.5,2.6997]
[1746095380390,1.08467,1843.6,1843.5,42.415]
[1746095380897,1.08467,1843.6,1843.5,43.49973]
[1746095381285,2.71127,1843.9,1843.5,42.415]
[1746095381587,1.08467,1843.6,1843.5,43.49968]
[1746095381787,1.08465,1843.7,1843.6,1.08465]
[1746095381988,1.08458,1843.8,1843.7,1.08458]
[1746095382186,1.08458,1843.8,1843.7,1.7093]
[1746095382386,1.08467,1843.6,1843.5,40.8]
[1746095382794,1.08467,1843.6,1843.5,1.08473]
[1746095383297,1.08473,1843.5,1843.4,43.59405]
[1746095383599,1.08472,1843.6,1843.5,1.08471]
[1746095383998,1.08472,1843.6,1843.5,4.29251]
[1746095384300,1.08472,1843.6,1843.5,6.00181]
[1746095384592,1.08472,1843.6,1843.5,1.7093]
[1746095384798,1.08478,1843.5,1843.4,1.08477]
[1746095385000,0.00484313,1843.8,1843.4,4.42113]
[1746095385295,5.81961,1843.7,1843.6,4.29247]
[1746095385790,5.81961,1843.7,1843.6,3.2078]
[1746095385991,1.08473,1843.5,1843.4,1.7093]
[1746095386301,1.08472,1843.6,1843.5,1.08471]
[1746095386485,1.08472,1843.6,1843.5,2.68521]
[1746095386692,7.45124313,1843.8,1843.5,1.6005]
[1746095386887,1.08467,1843.6,1843.5,2.68517]
[1746095387700,1.08467,1843.6,1843.5,1.6005]
[1746095387999,1.08467,1843.6,1843.5,2.68523]
[1746095389101,7.45124313,1843.8,1843.4,4.29256]
[1746095389102,1.08473,1843.5,1843.4,4.29256]
[1746095389598,1.08473,1843.5,1843.4,5.98406]
[1746095390097,10.91962,1843.5,1842.6,9.0378]
[1746095390401,1.08516,1842.8,1842.7,1.08516]
[1746095390595,2.71241,1843.1,1842.6,3.2078]
[1746095390793,1.0852,1842.7,1842.6,3.2078]
[1746095391498,1.08543,1842.3,1842.2,3.2078]
[1746095391697,1.08543,1842.3,1842.2,4.9395]
[1746095391897,1.08542,1842.4,1842.2,6.02495]
[1746095392200,1.08543,1842.3,1842.2,4.9395]
[1746095393100,1.08543,1842.3,1842.2,6.02499]
[1746095393400,1.7072,1842.4,1842.2,6.02497]
[1746095393598,1.08543,1842.3,1842.2,6.02497]
[1746095393800,1.08543,1842.3,1842.2,3.2078]
[1746095394601,1.08543,1842.3,1842.2,4.8783]
[1746095394790,2.79261,1842.4,1842.2,5.96379]
[1746095394995,2.79259,1842.4,1842.2,4.8783]
[1746095395195,1.08543,1842.3,1842.2,4.8783]
[1746095395400,2.67833,1842.3,1842.2,3.2078]
[1746095395693,7.41433,1842.3,1842.2,3.2078]
[1746095396096,2.67833,1842.3,1842.2,3.2078]
[1746095396303,1.08543,1842.3,1842.2,4.8783]
[1746095396502,1.08543,1842.3,1842.2,1.6705]
[1746095397205,1.08543,1842.3,1842.2,5.96376]
[1746095397501,1.08543,1842.3,1842.2,4.8783]
[1746095397699,1.08543,1842.3,1842.2,1.6705]
[1746095398600,1.08543,1842.3,1842.2,5.96379]
[1746095398794,1.08543,1842.3,1842.2,4.8783]
[1746095399004,1.08543,1842.3,1842.2,5.96379]
[1746095399505,1.08533,1842.5,1842.4,1.08532]
[1746095399702,1.08529,1842.6,1842.5,1.08525]
[1746095399901,4.737,1842.7,1842.5,2.68285]
[1746095400105,5.82224,1842.7,1842.6,3.2078]
[1746095400400,1.08514,1842.9,1842.8,1.08514]
[1746095400594,3.2078,1843.3,1842.8,4.29292]
[1746095400901,1.0848,1843.4,1843.2,3.2078]
[1746095401098,1.08483,1843.4,1843.3,1.6049]
[1746095401301,1.08453,1843.9,1843.7,1.08461]
[1746095401602,2.95757549,1844.0,1843.7,4.29241]
[1746095401808,1.7345,1844.0,1843.7,4.29241]
[1746095402106,4.737,1844.1,1843.7,4.29241]
[1746095402304,1.7345,1844.2,1843.7,4.29241]
[1746095402501,19.33608446,1844.5,1844.3,1.08425]
[1746095402502,1.08418,1844.5,1844.3,1.08425]
[1746095402708,0.41167302,1845.7,1844.4,4.8127]
[1746095402903,0.41167302,1845.7,1845.4,3.2078]
[1746095403097,16.20053338,1845.8,1845.7,1.08343]
[1746095403098,16.06298323,1845.8,1845.7,1.08343]
[1746095403604,0.1345499,1846.4,1845.7,12.85719259]
[1746095403901,0.27082656,1846.5,1846.4,1.08302]
[1746095404103,0.27082656,1846.5,1846.1,3.2078]
[1746095404104,9.17371904,1846.5,1846.1,3.2078]
[1746095404302,0.27082656,1846.5,1846.4,3.2078]
[1746095404612,0.35381249,1846.7,1846.4,3.2078]
[1746095404613,0.35381249,1846.7,1846.6,1.0829]
[1746095404807,0.62463905,1846.7,1846.6,3.2078]
[1746095405102,15.94065912,1846.7,1846.5,3.788]
[1746095405303,6.41312759,1846.6,1846.5,3.788]
[1746095405504,0.35381249,1846.7,1846.6,1.0829]
[1746095405709,2.49e-06,1846.7,1846.6,14.0267]
[1746095406010,9.17371904,1847.3,1846.6,15.0368]
[1746095406202,0.27082656,1847.4,1846.9,3.2078]
[1746095406397,6.68395415,1847.4,1847.3,3.2078]
[1746095406602,0.35758224,1848.6,1847.4,2.70605]
[1746095406800,3.2078,1848.3,1847.8,3.2078]
[1746095407007,0.27082656,1848.5,1848.1,3.2078]
[1746095407304,0.35758224,1848.6,1848.5,1.08179]
[1746095407704,0.35758224,1848.6,1848.5,5.0]
[1746095407895,0.35758224,1848.6,1848.4,3.61562055]
[1746095407896,0.35758224,1848.6,1848.4,3.2078]
[1746095408101,0.35758224,1848.6,1848.5,1.08179]
[1746095408301,0.35758224,1848.6,1848.5,3.788]
[1746095408302,0.6284088,1848.6,1848.5,3.788]
[1746095408497,15.94442887,1848.6,1848.5,3.788]
[1746095408801,0.35758224,1848.6,1848.5,50.08959]
[1746095409001,0.27082656,1848.9,1848.8,1.08162]
[1746095409201,0.27082656,1848.9,1848.8,4.28942]
[1746095409506,3.2078,1849.8,1848.8,8.2078]
[1746095409805,8.90289248,1849.3,1849.1,1.0814]
[1746095410107,8.90289248,1849.3,1848.9,4.5958]
[1746095410304,1.08113,1849.7,1849.2,4.28916]
[1746095410606,8.90289248,1849.1,1848.9,1.388]
[1746095410796,1.08156,1848.9,1848.8,3.788]
[1746095410996,4.8498,1849.0,1848.0,3.2078]
[1746095411307,2.70536,1847.9,1847.4,3.2078]
[1746095411607,11.52802007,1847.5,1846.9,40.8]
[1746095411904,6.41312759,1847.7,1847.0,3.2078]
[1746095412209,3.2078,1848.7,1847.6,3.2078]
[1746095412409,5.11489248,1848.1,1847.8,1.0822]
[1746095412703,11.52802007,1848.3,1847.9,3.2078]
[1746095412907,6.1011,1849.3,1848.9,1.08155]
[1746095413207,5.11489248,1849.2,1849.0,1.08147]
[1746095413406,6.41312759,1849.1,1848.7,3.2078]
[1746095413603,6.41312759,1849.0,1848.5,3.2078]
[1746095413798,5.11489248,1848.8,1848.7,3.2078]
[1746095414006,5.11489248,1848.9,1848.6,3.2078]
[1746095414303,5.11489248,1849.0,1848.9,1.08156]
[1746095414508,5.11489248,1849.4,1848.9,44.0078]
[1746095414706,6.41312759,1849.5,1849.0,3.2078]
[1746095414707,7.49467759,1849.1,1849.0,3.2078]
[1746095414914,6.73359248,1849.4,1848.9,40.8]
[1746095415108,7.81499248,1849.4,1849.0,1.08156]
[1746095415307,6.41312759,1849.3,1848.9,44.588]
[1746095415613,5.11489248,1849.6,1849.2,3.2078]
[1746095415804,1.618,1850.1,1849.7,1.08117]
[1746095416007,5.11489248,1849.8,1849.7,4.289]
[1746095416312,1.08067,1850.6,1849.7,11.9958]
[1746095416512,3.21320307,1850.8,1850.3,3.2078]
[1746095416705,1.08067,1850.6,1850.0,3.2078]
[1746095416906,3.2078,1850.7,1850.0,3.2078]
[1746095417107,3.2078,1850.5,1850.0,6.9958]
[1746095417312,4.28876,1850.1,1850.0,3.788]
[1746095417509,8.5808,1850.1,1848.9,40.8]
[1746095417712,3.2078,1849.7,1849.1,1.08152]
[1746095417906,3.2078,1849.2,1848.9,40.8]
[1746095418107,3.2078,1849.0,1848.2,3.2078]
[1746095418312,3.2078,1848.6,1848.0,3.2078]
[1746095418613,3.2078,1848.1,1847.8,40.8]
[1746095418808,3.2078,1847.9,1847.7,10.21463116]
[1746095419011,0.1536862,1848.2,1847.7,10.21463116]
[1746095419210,3.2078,1848.8,1847.8,44.588]
[1746095419412,1.6279,1848.9,1847.9,5.91343]
[1746095419614,1.6279,1848.9,1847.9,3.2078]
[1746095419812,1.6279,1848.9,1848.0,3.2078]
[1746095420009,4.8357,1848.9,1848.0,3.2078]
[1746095420213,4.8357,1848.9,1848.3,4.28977]
[1746095420414,3.2078,1849.3,1848.3,3.2078]
[1746095420605,1.6279,1849.8,1849.2,3.2078]
[1746095420810,3.2078,1850.5,1849.7,3.2078]
[1746095421014,1.6279,1850.2,1849.7,3.2078]
[1746095421213,3.2078,1850.9,1849.7,6.9958]
[1746095421415,3.2078,1850.9,1849.9,3.2078]
[1746095421416,1.5993,1850.6,1849.9,3.2078]
[1746095421619,1.5993,1850.6,1850.0,3.2078]
[1746095422011,1.5993,1850.6,1850.3,3.2078]
[1746095422207,10.6221,1850.6,1850.0,3.788]
[1746095422408,3.2078,1850.4,1850.0,3.788]
[1746095422714,1.5993,1850.3,1850.0,3.788]
[1746095423120,2.8586,1851.8,1850.3,3.2078]
[1746095423121,3.2078,1851.6,1850.3,3.2078]
[1746095423319,3.2078,1851.2,1850.7,3.2078]
[1746095423615,1.0805,1850.9,1850.5,1.08069]
[1746095423913,3.2078,1851.6,1850.6,3.2078]
[1746095424116,1.5993,1851.4,1851.1,3.2078]
[1746095424318,3.2078,1851.3,1850.8,3.2078]
[1746095424518,3.2078,1850.9,1850.5,3.788]
[1746095424815,72.835,1851.4,1850.5,3.788]
[1746095424816,1.6154,1850.8,1850.5,3.788]
[1746095425320,68.2651,1851.5,1850.5,3.788]
[1746095425321,3.2078,1851.3,1850.7,3.2078]
[1746095425518,1.08067,1850.6,1850.5,3.788]
[1746095425813,9.2618,1850.6,1849.4,3.2078]
[1746095426014,9.2618,1850.6,1848.7,2.9536]
[1746095426015,3.2078,1849.5,1848.7,3.2078]
[1746095426318,1.08213,1848.1,1848.0,1.5397]
[1746095426518,9.2618,1848.4,1847.5,13.42243116]
[1746095426815,6.054,1848.3,1847.6,40.8]
[1746095427014,3.1571,1848.7,1847.6,44.0078]
[1746095427015,1.6154,1848.2,1847.6,44.0078]
[1746095427213,3.2078,1849.1,1848.0,3.2078]
[1746095427418,3.2078,1849.1,1848.6,1.08182]
[1746095427616,1.7217,1849.0,1848.7,3.2078]
[1746095427820,1.7217,1849.0,1848.7,4.28955]
[1746095428117,3.2078,1849.9,1848.9,3.2078]
[1746095428307,3.2078,1849.9,1849.4,3.2078]
[1746095428308,1.7217,1849.5,1849.4,3.2078]
[1746095428617,1.7217,1849.5,1849.1,3.2078]
[1746095428813,3.2078,1850.3,1849.4,3.2078]
[1746095429013,1.7217,1850.0,1849.8,1.08111]
[1746095429212,1.7217,1850.0,1849.9,4.28888]
[1746095429515,1.7217,1850.0,1849.7,3.2078]
[1746095430017,1.7217,1850.0,1849.4,3.788]
[1746095430018,1.7217,1850.0,1849.9,4.28888]
[1746095430214,1.475,1850.7,1849.9,3.2078]
[1746095430415,1.7217,1850.4,1849.9,3.2078]
[1746095430609,1.7217,1850.4,1850.1,1.08092]
[1746095430915,1.7217,1850.4,1850.3,3.2078]
[1746095431123,9.9295,1850.4,1849.5,4.28908]
[1746095431419,3.2078,1849.6,1848.9,1.08164]
[1746095431616,1.08152,1849.2,1849.0,40.8]
[1746095431817,2.66845,1849.1,1849.0,44.0078]
[1746095432015,3.2078,1849.9,1849.0,40.8]
[1746095432315,1.5869,1849.9,1849.7,3.2078]
[1746095432713,1.5869,1849.9,1849.7,4.289]
[1746095432913,1.5869,1849.9,1849.8,1.08114]
[1746095433116,1.5869,1849.9,1849.8,4.86914]
[1746095433322,1.5869,1849.9,1849.8,3.788]
[1746095433515,2.66798,1849.9,1849.8,3.788]
[1746095434214,1.5869,1849.9,1849.8,3.788]
[1746095434419,2.66798,1849.9,1849.8,3.788]
[1746095434617,1.5869,1849.9,1849.8,4.86914]
[1746095434824,1.5869,1849.9,1849.8,3.788]
[1746095435220,2.66798,1849.9,1849.8,3.788]
[1746095435720,1.5869,1849.9,1849.8,3.788]
[1746095435921,7.66798,1849.9,1849.8,3.788]
[1746095436928,7.66798,1849.9,1849.8,3.17019463]
[1746095437721,3.2078,1848.8,1847.3,3.2078]
[1746095437924,1.0827,1847.2,1846.8,2.45847]
[1746095438121,3.2078,1847.7,1847.4,0.09409971]
[1746095438122,3.2078,1847.5,1847.4,0.09409971]
[1746095438330,1.08272,1847.1,1847.0,4.6001]
[1746095438522,3.2078,1847.6,1847.0,4.6001]
[1746095438825,3.2078,1847.5,1847.0,4.6001]
[1746095439026,1.08272,1847.1,1847.0,4.6001]
[1746095439530,6.08272,1847.1,1847.0,1.9948]
[1746095439925,1.08272,1847.1,1847.0,1.9948]
[1746095440325,1.3947,1847.6,1847.0,10.29669971]
[1746095440625,3.2078,1847.9,1847.0,5.2026]
[1746095440828,3.2078,1848.1,1847.8,0.09409971]
[1746095441029,3.2078,1848.1,1847.7,0.09409971]
[1746095441233,5.55169,1848.4,1847.4,3.2078]
[1746095441234,3.2078,1847.9,1847.4,3.2078]
[1746095441529,1.08248,1847.5,1847.4,3.2078]
[1746095441826,3.2078,1847.6,1847.0,1.9948]
[1746095442036,4.29052,1847.1,1847.0,1e-05]
[1746095442228,3.2078,1846.7,1845.6,6.68]
[1746095442428,3.2078,1846.6,1846.2,0.09409971]
[1746095442624,1.083,1846.7,1846.4,0.09409971]
[1746095442824,4.61,1847.0,1846.6,0.09409971]
[1746095443019,3.2078,1846.7,1846.3,0.09409971]
[1746095443225,4.29078,1846.7,1846.4,1.17722971]
[1746095443421,4.29078,1846.7,1846.5,0.09409971]
[1746095443727,1.08294,1846.8,1846.5,1.17716971]
[1746095444031,4.61,1847.0,1846.2,3.788]
[1746095444228,4.61,1847.0,1846.5,3.788]
[1746095444525,1.08274,1847.1,1846.9,0.09409971]
[1746095444726,1.08268,1847.2,1846.9,0.09409971]
[1746095444928,1.08268,1847.2,1846.6,1.6457]
[1746095444929,4.6523,1847.5,1847.0,0.09409971]
[1746095445231,1.08272,1847.1,1847.0,0.09409971]
[1746095445425,2.70651,1847.3,1846.6,1.6457]
[1746095445729,2.70651,1847.3,1846.7,0.09409971]
[1746095445730,1.08293,1846.8,1846.7,0.09409971]
[1746095445925,6.683,1847.3,1846.6,3.2078]
[1746095446131,14.04158,1847.5,1846.9,0.09409971]
[1746095446335,1.0828,1847.0,1846.9,0.09409971]
[1746095446525,1.0828,1847.0,1846.8,3.2078]
[1746095446731,3.2078,1847.3,1846.9,0.09409971]
[1746095446931,1.0829,1846.8,1846.7,3.788]
[1746095447131,4.2907,1846.8,1846.7,3.788]
[1746095447329,6.0829,1846.8,1846.7,3.788]
[1746095447527,9.2907,1846.8,1846.7,3.788]
[1746095447725,9.38466034,1846.8,1846.7,3.788]
[1746095447928,1.0829,1846.8,1846.7,3.788]
[1746095448327,1.08286,1846.9,1846.7,3.88209971]
[1746095448530,1.08281,1847.0,1846.9,0.09409971]
[1746095448836,1.0829,1846.8,1846.7,6.9958]
[1746095449928,1.08284,1846.9,1846.7,8.17281971]
[1746095450228,1.0829,1846.8,1846.7,47.88989971]
[1746095450428,0.84714187,1847.0,1846.8,0.09409971]
[1746095450627,1.08278,1847.0,1846.9,0.09409971]
[1746095450834,0.812,1847.1,1846.9,0.09409971]
[1746095451029,1.89472,1847.1,1847.0,0.09409971]
[1746095451229,0.812,1847.1,1847.0,1.17687971]
[1746095451433,0.812,1847.1,1847.0,4.29058]
[1746095451627,0.812,1847.1,1847.0,4.38467971]
[1746095451833,0.812,1847.1,1847.0,2.80427971]
[1746095452239,12.59868,1847.8,1847.3,1.08256]
[1746095452428,1.08248,1847.5,1847.4,0.09409971]
[1746095452631,1.08254,1847.4,1847.3,1.72149971]
[1746095453132,1.08254,1847.4,1847.3,3.88209971]
[1746095453334,1.08254,1847.4,1847.3,3.788]
[1746095453643,2.74274,1847.4,1847.3,3.788]
[1746095454336,7.74274,1847.4,1847.3,3.788]
[1746095454534,2.74274,1847.4,1847.3,3.788]
[1746095454735,7.74274,1847.4,1847.3,3.788]
[1746095454941,2.74274,1847.4,1847.3,3.788]
[1746095455140,2.74274,1847.4,1847.3,4.96469971]
[1746095455437,0.0291,1847.5,1847.4,1.08254]
[1746095455736,5.41098,1848.0,1847.4,5.01379971]
[1746095455931,1.08248,1847.5,1847.4,0.09409971]
[1746095456134,1.08254,1847.4,1847.3,3.2078]
[1746095456330,2.70754,1847.4,1847.3,3.2078]
[1746095456538,11.1076874,1847.7,1847.3,3.30189971]
[1746095456737,1.08254,1847.4,1847.3,44.10189971]
[1746095456931,12.59856,1847.9,1847.4,0.09409971]
[1746095457136,1.08243,1847.6,1847.5,1.80599971]
[1746095457341,1.08248,1847.5,1847.4,0.09409971]
[1746095457544,1.08254,1847.4,1847.3,6.9958]
[1746095458244,1.08254,1847.4,1847.3,3.788]
[1746095458749,9.29034,1847.4,1847.3,9.99e-06]
[1746095459142,1.08284,1846.9,1846.8,3.2078]
[1746095459933,1.08284,1846.9,1846.6,40.8]
[1746095460141,1.08295,1846.7,1846.6,40.89409971]
[1746095460547,1.08295,1846.7,1846.6,44.10189971]
[1746095461239,1.08294,1846.8,1846.6,44.10189971]
[1746095461439,2.70678,1847.2,1846.6,44.10189971]
[1746095461440,2.71243315,1847.6,1847.0,0.09409971]
[1746095461647,0.00632315,1847.6,1847.5,4.38437971]
[1746095461844,6.448,1848.8,1847.5,3.2078]
[1746095462142,1.08237,1847.7,1847.6,1.7276]
[1746095462344,1.08234,1847.8,1847.7,0.09409971]
[1746095462535,6.448,1848.4,1848.1,0.09409971]
[1746095462740,6.448,1848.4,1847.8,2.70575]
[1746095462741,1.08196,1848.4,1848.3,0.09409971]
[1746095462940,1.08196,1848.4,1848.3,0.24739971]
[1746095463147,1.08196,1848.4,1848.3,4.03539971]
[1746095463344,1.08196,1848.4,1848.3,3.788]
[1746095463839,1.08196,1848.4,1848.3,6.9958]
[1746095464044,1.08196,1848.4,1848.3,3.788]
[1746095464248,9.15122,1848.9,1848.3,3.788]
[1746095464249,3.2078,1848.9,1848.3,6.9958]
[1746095464437,1.08169,1848.9,1848.7,4.28955]
[1746095464639,2.70354,1849.4,1848.8,4.28952]
[1746095464839,0.09381541,1849.3,1849.0,3.2078]
[1746095465043,2.89445459,1849.8,1849.1,1.08153]
[1746095465245,2.89445459,1849.8,1848.8,3.2078]
[1746095465246,1.08133,1849.5,1849.4,3.2078]
[1746095465441,1.08155,1849.1,1849.0,3.2078]
[1746095466145,1.08163,1849.0,1848.7,2.66706]
[1746095466344,1.08163,1849.0,1848.9,3.2078]
[1746095466646,1.0819,1848.5,1848.4,3.2078]
[1746095467151,5.91225,1848.8,1848.4,3.788]
[1746095467352,1.0819,1848.5,1848.4,3.788]
[1746095467542,2.70402,1849.0,1848.4,3.788]
[1746095467845,2.7041,1849.0,1848.5,1.6211]
[1746095468051,2.7041,1849.0,1848.4,3.788]
[1746095468052,1.0819,1848.5,1848.4,3.788]
[1746095468348,1.0819,1848.5,1847.5,2.70614]
[1746095468349,9.6528,1848.5,1847.3,13.96784812]
[1746095468544,1.08248,1847.5,1847.4,7.96619116]
[1746095468741,1.08231,1847.8,1847.7,0.27050421]
[1746095469048,1.08231,1847.8,1847.7,41.07050421]
[1746095469251,4.29011,1847.8,1847.7,3.788]
[1746095469553,9.38400551,1847.8,1847.7,1.1784]
[1746095469753,9.38400551,1847.8,1847.7,1e-05]
[1746095470251,1.08248,1847.5,1847.4,7.96619116]
[1746095470448,4.38418948,1847.5,1847.4,7.96619116]
[1746095470650,9.38418948,1847.5,1847.4,5.15795116]
[1746095470852,9.38418948,1847.5,1847.4,1.16e-06]
[1746095471059,1.08254,1847.4,1847.3,12.77894928]
[1746095471355,1.0829,1846.8,1846.7,40.8]
[1746095471547,1.0829,1846.8,1846.0,3.2078]
[1746095471548,2.70747,1846.7,1846.0,3.2078]
[1746095471743,1.08322,1846.3,1846.2,1.6666]
[1746095471947,3.2078,1846.5,1846.2,42.4666]
[1746095472157,4.29087,1846.5,1846.4,0.27050421]
[1746095473249,4.29087,1846.5,1846.4,3.788]
[1746095473655,4.3848378,1846.5,1846.4,3.788]
[1746095473854,9.3848378,1846.5,1846.4,2.62727]
[1746095474052,2.70813,1846.2,1845.6,4.7496]
[1746095474247,2.70886,1845.7,1845.1,1.4968]
[1746095474446,3.2078,1845.7,1845.6,0.27050421]
[1746095474761,2.70859,1845.9,1845.6,3.47830421]
[1746095474762,3.2078,1845.9,1845.6,3.47830421]
[1746095475055,3.2078,1846.1,1845.8,0.27050421]
[1746095475453,1.6748,1846.0,1845.6,2.72778]
[1746095475660,4.29115,1846.1,1846.0,0.27050421]
[1746095475965,3.2078,1846.2,1846.0,0.27050421]
[1746095476256,4.29108,1846.2,1846.1,1.607]
[1746095476450,4.29108,1846.2,1846.1,0.27050421]
[1746095476757,4.29108,1846.2,1846.0,3.788]
[1746095476758,1.08331,1846.1,1846.0,3.788]
[1746095477060,1.08331,1846.1,1846.0,2.65623]
[1746095477254,1.08331,1846.1,1845.3,1.08374]
[1746095477255,1.0837,1845.5,1845.3,1.08374]
[1746095477448,3.2078,1845.7,1845.2,4.8148]
[1746095477654,1.0836,1845.6,1845.5,0.27050421]
[1746095477855,3.2078,1845.7,1845.6,1.35410421]
[1746095478050,2.70823,1846.2,1845.6,1.35410421]
[1746095478051,3.2078,1846.2,1845.6,0.27050421]
[1746095478256,1.08325,1846.2,1846.1,0.27050421]
[1746095478649,1.0836,1845.6,1845.5,3.788]
[1746095478952,1.0836,1845.6,1845.5,44.588]
[1746095479261,6.0836,1845.6,1845.5,2.48467]
[1746095479461,7.7991,1845.6,1845.5,2.48467]
[1746095479965,7.7991,1845.6,1845.5,0.95041]
[1746095480148,1.08389,1845.1,1845.0,40.8]
[1746095480349,4.29169,1845.1,1845.0,40.8]
[1746095480550,2.70948,1845.3,1845.2,1.08383]
[1746095480551,3.2078,1845.3,1845.2,1.08383]
[1746095480759,4.29158,1845.3,1845.2,0.27050421]
[1746095480956,1.08383,1845.2,1845.1,1.6525]
[1746095481256,1.08383,1845.2,1844.6,2.71037]
[1746095481257,8.2078,1845.3,1844.1,0.09432824]
[1746095481451,1.08448,1844.1,1844.0,6.91097823]
[1746095481850,1.08448,1844.1,1844.0,47.71097823]
[1746095482056,2.73038,1844.1,1844.0,47.71097823]
[1746095482263,2.73038,1844.1,1844.0,44.588]
[1746095482553,3.2078,1844.2,1844.0,50.67254]
[1746095482859,3.2078,1844.2,1844.1,1.6571]
[1746095483360,3.2078,1844.4,1844.1,6.6571]
[1746095483560,1.08438,1844.3,1844.2,1.6571]
[1746095483954,1.08436,1844.3,1844.2,1.6571]
[1746095484258,1.08436,1844.3,1844.2,3.788]
[1746095484953,5.93789,1844.6,1844.3,1.08436]
[1746095485158,3.2078,1844.6,1844.3,6.59415]
[1746095485459,3.2078,1844.6,1844.3,5.5098]
[1746095485665,1.08426,1844.5,1844.3,5.5098]
[1746095485856,1.0843,1844.4,1844.3,5.5098]
[1746095486359,4.2921,1844.4,1844.3,5.5098]
[1746095486655,4.2921,1844.4,1844.3,3.788]
[1746095488450,9.2921,1844.4,1844.3,1.79353]
[1746095488656,1.0848,1843.6,1843.4,1.08489]
[1746095488862,1.0848,1843.6,1843.5,1.5937]
[1746095489056,4.2926,1843.6,1843.5,42.3937]
[1746095489258,4.2926,1843.6,1843.5,3.788]
[1746095490260,9.2926,1843.6,1843.5,2.23806]
[1746095490561,9.2926,1843.6,1843.5,0.69081]
[1746095490766,9.2926,1843.6,1843.5,1e-05]